fUSD/lending_fUSD_20260202
["ID","MTS","AMOUNT","RATE_DAILY","PERIOD"]
[404327327,1770061853936,-1180.96358195,0.00016438,2]
[404327328,1770061853946,-1180.96358195,0.00016438,2]
[404327329,1770061853956,-1180.96358195,0.00016438,2]
[404327330,1770061853966,-1180.96358195,0.00016438,2]
[404327331,1770061853975,-1180.96358195,0.00016438,2]
[404327332,1770061853984,-1180.96358195,0.00016438,2]
[404327333,1770061853994,-1180.96358195,0.00016438,2]
[404327334,1770061854003,-1180.96358195,0.00016438,2]
[404327335,1770061854013,-1180.96358195,0.00016438,2]
[404327336,1770061854023,-1180.96358195,0.00016438,2]
[404327337,1770061854033,-1180.96358195,0.00016438,2]
[404327338,1770061854043,-10502.89898708,0.00018,2]
[404327339,1770061854192,-1.7e-07,0.00018,2]
[404327340,1770061854205,-553.72515241,0.00018,2]
[404327341,1770061854218,-393.43,0.00018,2]
[404327342,1770061854264,-1032069.22029425,0.00018,2]
[404327343,1770061854277,-7425468.10479243,0.00018,2]
[404327344,1770061854288,-2245.751801,0.00018,2]
[404327345,1770061854615,-188.87,0.00013699,2]
[404327346,1770061854625,-84.03854117,0.00013737,2]
[404327347,1770061854683,-66.96145883,0.00013737,2]
[404327348,1770061854692,-151.0,0.00013737,2]
[404327349,1770061854702,-445.60374117,0.00018,2]
[404327350,1770061854713,-230509.99411039,0.00018,2]
[404327351,1770061855734,-1015.61178862,0.00018,2]
[404327352,1770061855759,-453.78726213,0.00011083,2]
[404327353,1770061855813,-21.21273787,0.00011083,2]
[404327354,1770061855823,-726.0,0.00011105,2]
[404327355,1770061855832,-16756.25718032,0.00018,2]
[404327356,1770061855848,-1562.22,0.00018,2]
[404327357,1770061855859,-900000.0,0.00018,2]
[404327358,1770061898040,10000.01,0.0001073,2]
[404327359,1770061898076,10000.01,0.0001073,2]
[404327360,1770061898107,10000.01,0.0001073,2]
[404327361,1770061898135,10000.01,0.0001073,2]
[404327362,1770061898163,10000.01,0.0001073,2]
[404327363,1770061898194,10000.01,0.0001073,2]
[404327364,1770061898224,10000.01,0.0001073,2]
[404327365,1770061898259,10000.01,0.0001073,2]
[404327366,1770061898287,10000.01,0.0001073,2]
[404327367,1770061898314,10000.01,0.0001073,2]
[404327368,1770061907919,-5843.20800795,0.0001073,2]
[404327369,1770061908017,-10000.01,0.0001073,2]
[404327370,1770061908133,-10000.01,0.0001073,2]
[404327371,1770061908260,-10000.01,0.0001073,2]
[404327372,1770061908378,-10000.01,0.0001073,2]
[404327373,1770061908496,-10000.01,0.0001073,2]
[404327374,1770061908648,-10000.01,0.0001073,2]
[404327375,1770061908771,-10000.01,0.0001073,2]
[404327376,1770061908891,-10000.01,0.0001073,2]
[404327377,1770061909005,-10000.01,0.0001073,2]
[404327378,1770061909108,-10000.01,0.0001073,2]
[404327379,1770061909225,-10000.01,0.0001073,2]
[404327380,1770061909637,-10000.01,0.0001073,2]
[404327381,1770061910754,-10000.01,0.0001073,2]
[404327382,1770061910847,-10000.01,0.0001073,2]
[404327383,1770061910982,-10000.01,0.0001073,2]
[404327384,1770061911100,-10000.01,0.0001073,2]
[404327385,1770061911334,-10000.01,0.0001073,2]
[404327386,1770061911455,-10000.01,0.0001073,2]
[404327387,1770061911574,-10000.01,0.0001073,2]
[404327388,1770061911686,-10000.01,0.0001073,2]
[404327399,1770061965205,-250.002096,0.00010675,2]
[404327450,1770062002238,2604.59863194,0.0001063,2]
[404327464,1770062060271,217.07319232,0.0001063,2]
[404327465,1770062085978,237.2858,0.00010625,2]
[404327475,1770062161525,300.0,0.00010684,2]
[404327481,1770062165754,2500.0,0.00010625,2]
[404327482,1770062174366,288.62836425,0.0001063,2]
[404327499,1770062223852,244.0,0.00010684,2]
[404327510,1770062229066,300.0,0.00010684,2]
[404327511,1770062254045,1367.38163575,0.00010625,2]
[404327512,1770062254067,8632.61836425,0.00010625,2]
[404327513,1770062281794,300.0,0.00010684,2]
[404327522,1770062307210,572.0,0.00010684,2]
[404327523,1770062327559,495.39163575,0.00010625,2]
[404327524,1770062327581,2004.60836425,0.00010625,2]
[404327525,1770062341511,300.0,0.00010684,2]
[404327526,1770062357089,260.03396784,0.0001063,2]
[404327527,1770062358030,1134.26821679,0.0001063,2]
[404327528,1770062362109,-1131.59057672,0.00010685,2]
[404327529,1770062364787,-5000.01,0.00010685,2]
[404327530,1770062364899,-5000.01,0.00010685,2]
[404327531,1770062365010,-5000.01,0.00010685,2]
[404327536,1770062415476,300.0,0.00010684,2]
[404327537,1770062425231,737.02185876,0.0001063,2]
[404327538,1770062434963,-99.37942328,0.00010685,2]
[404327539,1770062434991,-3333.0,0.00010685,2]
[404327540,1770062435022,-500.0,0.00010685,2]
[404327541,1770062435051,-347.23037837,0.00010685,2]
[404327542,1770062435081,-238.0,0.00010685,2]
[404327543,1770062435110,-150.0,0.00010698,2]
[404327544,1770062435140,-250.0,0.00010704,2]
[404327545,1770062437755,-584.1597991,0.00010715,2]
[404327546,1770062437786,-584.1597991,0.00010715,2]
[404327547,1770062437823,-250.0,0.00010716,2]
[404327548,1770062437854,-300.0,0.00010722,2]
[404327549,1770062437884,-1200.0,0.00010722,2]
[404327550,1770062437914,-150.0,0.00010722,2]
[404327551,1770062443904,-2774.06614922,0.00010723,2]
[404327552,1770062446993,-10000.01,0.00010723,2]
[404327553,1770062451464,5000.01,0.00010585,2]
[404327554,1770062451491,5000.01,0.00010585,2]
[404327555,1770062451518,5000.01,0.00010585,2]
[404327556,1770062451547,5000.01,0.00010585,2]
[404327557,1770062451572,5000.01,0.00010585,2]
[404327558,1770062451597,5000.01,0.00010585,2]
[404327559,1770062451626,5000.01,0.00010585,2]
[404327560,1770062451649,5000.01,0.00010585,2]
[404327561,1770062451673,5000.01,0.00010585,2]
[404327562,1770062451699,5000.01,0.00010585,2]
[404327563,1770062451725,10000.01,0.00010585,2]
[404327564,1770062451755,10000.01,0.00010585,2]
[404327565,1770062451783,10000.01,0.00010585,2]
[404327566,1770062451810,10000.01,0.00010585,2]
[404327567,1770062451837,10000.01,0.00010585,2]
[404327568,1770062451863,10000.01,0.00010585,2]
[404327569,1770062451889,10000.01,0.00010585,2]
[404327570,1770062451915,10000.01,0.00010585,2]
[404327571,1770062456688,-10000.01,0.00010585,2]
[404327572,1770062456841,-10000.01,0.00010585,2]
[404327573,1770062456963,-10000.01,0.00010585,2]
[404327574,1770062457082,-10000.01,0.00010585,2]
[404327575,1770062491543,-3020.04833449,0.00010585,2]
[404327576,1770062493266,3994.412,0.00010373,2]
[404327577,1770062493357,366.411,0.00010373,2]
[404327581,1770062528869,151.0,0.00010582,2]
[404327583,1770062559590,1376.58,0.00010093,2]
[404327584,1770062559705,393.15670328,0.00010584,2]
[404327585,1770062559751,500.0,0.00010584,2]
[404327586,1770062559812,520.62760936,0.00010584,2]
[404327587,1770062559929,500.0,0.00010584,2]
[404327588,1770062560193,500.0,0.00010584,2]
[404327589,1770062560341,557.92383357,0.00010584,2]
[404327590,1770062563903,155.95348889,0.00010584,2]
[404327591,1770062563954,304.60692626,0.00010584,2]
[404327592,1770062563997,679.33843864,0.00010584,2]
[404327593,1770062564020,312.05059098,0.00010584,2]
[404327594,1770062564063,991.38902962,0.00010584,2]
[404327595,1770062564109,991.38902962,0.00010584,2]
[404327596,1770062564160,991.38902962,0.00010584,2]
[404327597,1770062564456,991.38902962,0.00010584,2]
[404327598,1770062564525,722.40329054,0.00010584,2]
[404327599,1770062564550,268.98573908,0.00010584,2]
[404327600,1770062564594,991.38902962,0.00010584,2]
[404327601,1770062564652,991.38902962,0.00010584,2]
[404327602,1770062564695,991.38902962,0.00010584,2]
[404327603,1770062564745,991.38902962,0.00010584,2]
[404327604,1770062564792,765.46814244,0.00010584,2]
[404327605,1770062564819,225.92088718,0.00010584,2]
[404327606,1770062564872,991.38902962,0.00010584,2]
[404327607,1770062564914,991.38902962,0.00010584,2]
[404327608,1770062564950,991.38902962,0.00010584,2]
[404327609,1770062564991,991.38902962,0.00010584,2]
[404327610,1770062565046,808.53299434,0.00010584,2]
[404327611,1770062565069,182.85603528,0.00010584,2]
[404327612,1770062565111,991.38902962,0.00010584,2]
[404327613,1770062565160,991.38902962,0.00010584,2]
[404327614,1770062565203,991.38902962,0.00010584,2]
[404327615,1770062565244,991.38902962,0.00010584,2]
[404327616,1770062565295,851.59784624,0.00010584,2]
[404327617,1770062565318,139.79118338,0.00010584,2]
[404327618,1770062565367,991.38902962,0.00010584,2]
[404327619,1770062565408,991.38902962,0.00010584,2]
[404327620,1770062565462,991.38902962,0.00010584,2]
[404327621,1770062565503,991.38902962,0.00010584,2]
[404327622,1770062565550,894.66269814,0.00010584,2]
[404327623,1770062565573,96.72633148,0.00010584,2]
[404327624,1770062565621,991.38902962,0.00010584,2]
[404327625,1770062565664,991.38902962,0.00010584,2]
[404327626,1770062565710,991.38902962,0.00010584,2]
[404327627,1770062565760,991.38902962,0.00010584,2]
[404327628,1770062565810,937.72755004,0.00010584,2]
[404327629,1770062565837,53.66147958,0.00010584,2]
[404327630,1770062565891,991.38902962,0.00010584,2]
[404327631,1770062565928,991.38902962,0.00010584,2]
[404327632,1770062565972,991.38902962,0.00010584,2]
[404327633,1770062566024,991.38902962,0.00010584,2]
[404327634,1770062566070,980.79240194,0.00010584,2]
[404327635,1770062566096,10.59662768,0.00010584,2]
[404327636,1770062566145,991.38902962,0.00010584,2]
[404327637,1770062566188,991.38902962,0.00010584,2]
[404327638,1770062566242,991.38902962,0.00010584,2]
[404327639,1770062566287,991.38902962,0.00010584,2]
[404327640,1770062566329,991.38902962,0.00010584,2]
[404327641,1770062566387,32.46822422,0.00010584,2]
[404327642,1770062566413,958.9208054,0.00010584,2]
[404327643,1770062566457,991.38902962,0.00010584,2]
[404327644,1770062566515,991.38902962,0.00010584,2]
[404327645,1770062566607,991.38902962,0.00010584,2]
[404327646,1770062566655,991.38902962,0.00010584,2]
[404327647,1770062566698,75.53307612,0.00010584,2]
[404327648,1770062566722,915.8559535,0.00010584,2]
[404327649,1770062566766,991.38902962,0.00010584,2]
[404327650,1770062566832,991.38902962,0.00010584,2]
[404327651,1770062566882,991.38902962,0.00010584,2]
[404327652,1770062566938,991.38902962,0.00010584,2]
[404327653,1770062566981,991.38902962,0.00010584,2]
[404327654,1770062567051,991.38902962,0.00010584,2]
[404327655,1770062567094,991.38902962,0.00010584,2]
[404327656,1770062567136,991.38902962,0.00010584,2]
[404327657,1770062567181,991.38902962,0.00010584,2]
[404327658,1770062568530,-5000.01,0.00010585,2]
[404327659,1770062568616,-5000.01,0.00010585,2]
[404327660,1770062568743,-5000.01,0.00010585,2]
[404327661,1770062568863,-5000.01,0.00010585,2]
[404327662,1770062568988,-5000.01,0.00010585,2]
[404327663,1770062569375,-5000.01,0.00010585,2]
[404327664,1770062573042,-5000.01,0.00010585,2]
[404327665,1770062573161,-5000.01,0.00010585,2]
[404327666,1770062573276,-5000.01,0.00010585,2]
[404327667,1770062573441,-5000.01,0.00010585,2]
[404327668,1770062573588,-5000.01,0.00010585,2]
[404327669,1770062573707,-5000.01,0.00010585,2]
[404327670,1770062573817,-5000.01,0.00010585,2]
[404327671,1770062574035,-5000.01,0.00010585,2]
[404327672,1770062574144,-5000.01,0.00010585,2]
[404327673,1770062574281,-5000.01,0.00010585,2]
[404327674,1770062574396,-5000.01,0.00010585,2]
[404327675,1770062574516,-5000.01,0.00010585,2]
[404327676,1770062574646,-5000.01,0.00010585,2]
[404327677,1770062574754,-5000.01,0.00010585,2]
[404327678,1770062574876,-5000.01,0.00010585,2]
[404327679,1770062579048,-5000.01,0.00010585,2]
[404327680,1770062579148,-5000.01,0.00010585,2]
[404327681,1770062579256,-5000.01,0.00010585,2]
[404327682,1770062579702,161.65277992,0.00010584,2]
[404327683,1770062579724,338.34722008,0.00010584,2]
[404327684,1770062579779,250.0,0.00010584,2]
[404327685,1770062579861,-5000.01,0.00010585,2]
[404327686,1770062579943,-5000.01,0.00010585,2]
[404327687,1770062579988,-5000.01,0.00010585,2]
[404327688,1770062580023,-5000.01,0.00010585,2]
[404327689,1770062580044,-5000.01,0.00010585,2]
[404327690,1770062580100,-5000.01,0.00010585,2]
[404327691,1770062580216,-5000.01,0.00010585,2]
[404327692,1770062580468,-5000.01,0.00010585,2]
[404327693,1770062580815,-5000.01,0.00010585,2]
[404327694,1770062580879,-5000.01,0.00010585,2]
[404327695,1770062580893,-5000.01,0.00010585,2]
[404327696,1770062580929,-5000.01,0.00010585,2]
[404327697,1770062581774,300.0,0.00010584,2]
[404327698,1770062582020,1226.60944355,0.00010584,2]
[404327699,1770062582277,150.0,0.00010584,2]
[404327700,1770062583130,300.0,0.00010584,2]
[404327701,1770062594504,2377.0,0.000134,5]
[404327702,1770062606856,1200.0,0.00010584,2]
[404327703,1770062634522,3430.5333,0.00010485,2]
[404327704,1770062640792,2804.52003637,0.00010485,2]
[404327705,1770062640820,7407.25656363,0.00010485,2]
[404327706,1770062641525,300.0,0.00010584,2]
[404327707,1770062645138,402.58652195,0.00010523,2]
[404327708,1770062670150,150.0,0.00010558,2]
[404327709,1770062672646,-216.67,0.00010585,2]
[404327710,1770062686581,-500.0,0.00010585,2]
[404327711,1770062701463,1200.0,0.00010584,2]
[404327727,1770062713110,200.0,0.00010309,2]
[404327728,1770062747408,173.35597856,0.00010494,2]
[404327729,1770062752807,166.81093586,0.00010485,2]
[404327730,1770062752830,9833.18906414,0.00010485,2]
[404327731,1770062761773,166.82093586,0.00010584,2]
[404327732,1770062761796,133.17906414,0.00010584,2]
[404327733,1770062761989,150.0,0.00010584,2]
[404327735,1770062763874,205.0,0.00010584,2]
[404327736,1770062765738,300.0,0.00010584,2]
[404327737,1770062766014,415.94928572,0.00010584,2]
[404327738,1770062773406,8795.88165014,0.0001032,2]
[404327739,1770062773428,1588.62834986,0.0001032,2]
[404327740,1770062774468,798.98975651,0.00010584,2]
[404327741,1770062774520,798.98975651,0.00010584,2]
[404327742,1770062774571,798.98975651,0.00010584,2]
[404327743,1770062774618,798.98975651,0.00010584,2]
[404327744,1770062774659,798.98975651,0.00010584,2]
[404327745,1770062774703,798.98975651,0.00010584,2]
[404327746,1770062774743,798.98975651,0.00010584,2]
[404327747,1770062774788,798.98975651,0.00010584,2]
[404327748,1770062774832,798.98975651,0.00010584,2]
[404327749,1770062774877,798.98975651,0.00010584,2]
[404327750,1770062774915,421.48408504,0.00010584,2]
[404327751,1770062774941,377.50567147,0.00010584,2]
[404327752,1770062774981,798.98975651,0.00010584,2]
[404327753,1770062775019,798.98975651,0.00010584,2]
[404327754,1770062775061,798.98975651,0.00010584,2]
[404327755,1770062775108,798.98975651,0.00010584,2]
[404327756,1770062775146,798.98975651,0.00010584,2]
[404327757,1770062775189,798.98975651,0.00010584,2]
[404327758,1770062775226,798.98975651,0.00010584,2]
[404327759,1770062775264,798.98975651,0.00010584,2]
[404327760,1770062775302,798.98975651,0.00010584,2]
[404327761,1770062775353,798.98975651,0.00010584,2]
[404327762,1770062775397,798.98975651,0.00010584,2]
[404327763,1770062775438,798.98975651,0.00010584,2]
[404327764,1770062775482,34.62725041,0.00010584,2]
[404327765,1770062775511,764.3625061,0.00010584,2]
[404327766,1770062775553,798.98975651,0.00010584,2]
[404327767,1770062775594,798.98975651,0.00010584,2]
[404327768,1770062775651,798.98975651,0.00010584,2]
[404327769,1770062775693,798.98975651,0.00010584,2]
[404327770,1770062775737,798.98975651,0.00010584,2]
[404327771,1770062775793,798.98975651,0.00010584,2]
[404327772,1770062775834,798.98975651,0.00010584,2]
[404327773,1770062775877,798.98975651,0.00010584,2]
[404327774,1770062775930,798.98975651,0.00010584,2]
[404327775,1770062775976,798.98975651,0.00010584,2]
[404327776,1770062776016,798.98975651,0.00010584,2]
[404327777,1770062776060,446.76017229,0.00010584,2]
[404327778,1770062776089,352.22958422,0.00010584,2]
[404327779,1770062776135,798.98975651,0.00010584,2]
[404327780,1770062776183,798.98975651,0.00010584,2]
[404327781,1770062776227,798.98975651,0.00010584,2]
[404327782,1770062776270,798.98975651,0.00010584,2]
[404327783,1770062776312,798.98975651,0.00010584,2]
[404327784,1770062776356,798.98975651,0.00010584,2]
[404327785,1770062776406,798.98975651,0.00010584,2]
[404327786,1770062776445,798.98975651,0.00010584,2]
[404327787,1770062776495,798.98975651,0.00010584,2]
[404327788,1770062776533,798.98975651,0.00010584,2]
[404327789,1770062776575,798.98975651,0.00010584,2]
[404327790,1770062776620,798.98975651,0.00010584,2]
[404327791,1770062776658,59.90333766,0.00010584,2]
[404327792,1770062776683,739.08641885,0.00010584,2]
[404327793,1770062776735,798.98975651,0.00010584,2]
[404327794,1770062798518,798.98975651,0.00010584,2]
[404327795,1770062798560,798.98975651,0.00010584,2]
[404327796,1770062798602,798.98975651,0.00010584,2]
[404327797,1770062798641,798.98975651,0.00010584,2]
[404327798,1770062798678,798.98975651,0.00010584,2]
[404327799,1770062798720,798.98975651,0.00010584,2]
[404327800,1770062798757,206.07146094,0.00010584,2]
[404327801,1770062798781,592.91829557,0.00010584,2]
[404327802,1770062798818,798.98975651,0.00010584,2]
[404327803,1770062799126,798.98975651,0.00010584,2]
[404327804,1770062799165,798.98975651,0.00010584,2]
[404327805,1770062799204,798.98975651,0.00010584,2]
[404327806,1770062799240,798.98975651,0.00010584,2]
[404327807,1770062799277,412.14292188,0.00010584,2]
[404327808,1770062799300,386.84683463,0.00010584,2]
[404327809,1770062799343,798.98975651,0.00010584,2]
[404327810,1770062799381,798.98975651,0.00010584,2]
[404327811,1770062799423,798.98975651,0.00010584,2]
[404327812,1770062799461,798.98975651,0.00010584,2]
[404327813,1770062799513,798.98975651,0.00010584,2]
[404327814,1770062799551,618.21438282,0.00010584,2]
[404327815,1770062799576,180.77537369,0.00010584,2]
[404327816,1770062799617,798.98975651,0.00010584,2]
[404327817,1770062799662,798.98975651,0.00010584,2]
[404327818,1770062799708,798.98975651,0.00010584,2]
[404327819,1770062799745,798.98975651,0.00010584,2]
[404327820,1770062799781,798.98975651,0.00010584,2]
[404327821,1770062799818,798.98975651,0.00010584,2]
[404327822,1770062799855,25.29608725,0.00010584,2]
[404327823,1770062799883,773.69366926,0.00010584,2]
[404327824,1770062799923,798.98975651,0.00010584,2]
[404327825,1770062799963,798.98975651,0.00010584,2]
[404327826,1770062800004,798.98975651,0.00010584,2]
[404327827,1770062800040,798.98975651,0.00010584,2]
[404327828,1770062800075,798.98975651,0.00010584,2]
[404327829,1770062800112,231.36754819,0.00010584,2]
[404327830,1770062800134,567.62220832,0.00010584,2]
[404327831,1770062800168,798.98975651,0.00010584,2]
[404327832,1770062800207,798.98975651,0.00010584,2]
[404327833,1770062800272,798.98975651,0.00010584,2]
[404327834,1770062800307,798.98975651,0.00010584,2]
[404327835,1770062800347,798.98975651,0.00010584,2]
[404327836,1770062800388,437.43900913,0.00010584,2]
[404327837,1770062800410,361.55074738,0.00010584,2]
[404327838,1770062800445,798.98975651,0.00010584,2]
[404327839,1770062800481,798.98975651,0.00010584,2]
[404327840,1770062800516,798.98975651,0.00010584,2]
[404327841,1770062800552,798.98975651,0.00010584,2]
[404327842,1770062800596,798.98975651,0.00010584,2]
[404327843,1770062800633,643.51047007,0.00010584,2]
[404327844,1770062800656,155.47928644,0.00010584,2]
[404327845,1770062800692,798.98975651,0.00010584,2]
[404327846,1770062800728,798.98975651,0.00010584,2]
[404327847,1770062800765,798.98975651,0.00010584,2]
[404327848,1770062800804,798.98975651,0.00010584,2]
[404327849,1770062800841,798.98975651,0.00010584,2]
[404327850,1770062800880,798.98975651,0.00010584,2]
[404327851,1770062800917,50.5921745,0.00010584,2]
[404327852,1770062800944,748.39758201,0.00010584,2]
[404327853,1770062800983,798.98975651,0.00010584,2]
[404327854,1770062801091,798.98975651,0.00010584,2]
[404327855,1770062810417,2500.0,0.00010485,2]
[404327856,1770062813231,500.0,0.00010584,2]
[404327857,1770062813286,259.59041069,0.00010584,2]
[404327858,1770062821531,300.0,0.00010584,2]
[404327859,1770062826215,188.43,8.272e-05,2]
[404327860,1770062826447,188.43,0.0001034,2]
[404327861,1770062830104,332.5076509,0.00010584,2]
[404327862,1770062831081,151.0,0.00010585,2]
[404327863,1770062831711,151.0,0.00010585,2]
[404327864,1770062832338,151.0,0.00010585,2]
[404327865,1770062832944,151.0,0.00010585,2]
[404327866,1770062833547,151.0,0.00010585,2]
[404327867,1770062834131,151.0,0.00010585,2]
[404327868,1770062834723,151.0,0.00010585,2]
[404327869,1770062835317,151.0,0.00010585,2]
[404327870,1770062835917,151.0,0.00010585,2]
[404327871,1770062836530,151.0,0.00010585,2]
[404327872,1770062837448,151.0,0.00010585,2]
[404327873,1770062837516,200.0,0.00010585,2]
[404327874,1770062838569,500.0,0.00010584,2]
[404327875,1770062838652,500.0,0.00010584,2]
[404327876,1770062838693,500.0,0.00010584,2]
[404327877,1770062838767,23.67484338,0.00010584,2]
[404327878,1770062838788,614.12251387,0.00010584,2]
[404327879,1770062838946,500.0,0.00010584,2]
[404327880,1770062839241,151.0,0.00010585,2]
[404327881,1770062839846,151.0,0.00010585,2]
[404327882,1770062840468,151.0,0.00010585,2]
[404327883,1770062841197,-151.0,0.00010585,2]
[404327884,1770062841692,-151.0,0.00010585,2]
[404327885,1770062841804,-6441.81131077,0.00010585,2]
[404327886,1770062841825,-151.0,0.00010585,2]
[404327887,1770062841842,-9698.01,0.00010585,2]
[404327888,1770062841927,-500.0,0.00010585,2]
[404327889,1770062841960,-9500.01,0.00010585,2]
[404327890,1770062842020,-500.0,0.00010585,2]
[404327891,1770062842049,-9000.01,0.00010585,2]
[404327892,1770062842127,-10000.01,0.00010585,2]
[404327893,1770062842156,-10000.01,0.00010585,2]
[404327894,1770062842271,-151.0,0.00010585,2]
[404327895,1770062842312,-9698.01,0.00010585,2]
[404327896,1770062844254,-500.0,0.00010585,2]
[404327897,1770062844284,-151.0,0.00010585,2]
[404327898,1770062844312,-500.0,0.00010585,2]
[404327899,1770062844341,-151.0,0.00010585,2]
[404327900,1770062844369,-500.0,0.00010585,2]
[404327901,1770062844397,-151.0,0.00010585,2]
[404327902,1770062844528,-500.0,0.00010585,2]
[404327903,1770062844594,-5594.01,0.00010585,2]
[404327904,1770062844623,-500.0,0.00010585,2]
[404327905,1770062844637,-9000.01,0.00010585,2]
[404327906,1770062844658,-10000.01,0.00010585,2]
[404327907,1770062859951,-500.0,0.00010585,2]
[404327908,1770062859978,-500.0,0.00010585,2]
[404327909,1770062860006,-500.0,0.00010585,2]
[404327910,1770062860034,-151.0,0.00010585,2]
[404327911,1770062860063,-500.0,0.00010585,2]
[404327912,1770062860092,-151.0,0.00010585,2]
[404327913,1770062860122,-151.0,0.00010585,2]
[404327914,1770062860149,-500.0,0.00010585,2]
[404327915,1770062860177,-151.0,0.00010585,2]
[404327916,1770062860204,-500.0,0.00010585,2]
[404327917,1770062860233,-151.0,0.00010585,2]
[404327918,1770062860261,-500.0,0.00010585,2]
[404327919,1770062860289,-151.0,0.00010585,2]
[404327920,1770062860317,-500.0,0.00010585,2]
[404327921,1770062860347,-37.01,0.00010585,2]
[404327922,1770062860547,-113.99,0.00010585,2]
[404327923,1770062860576,-500.0,0.00010585,2]
[404327924,1770062860605,-151.0,0.00010585,2]
[404327925,1770062860633,-500.0,0.00010585,2]
[404327926,1770062860662,-151.0,0.00010585,2]
[404327927,1770062860691,-500.0,0.00010585,2]
[404327928,1770062860723,-151.0,0.00010585,2]
[404327929,1770062860752,-500.0,0.00010585,2]
[404327930,1770062860784,-151.0,0.00010585,2]
[404327931,1770062860815,-500.0,0.00010585,2]
[404327932,1770062860844,-500.0,0.00010585,2]
[404327933,1770062860873,-500.0,0.00010585,2]
[404327934,1770062861333,-500.0,0.00010585,2]
[404327935,1770062861826,-1215.03,0.00010585,2]
[404327936,1770062861912,-500.0,0.00010585,2]
[404327937,1770062861930,-9000.01,0.00010585,2]
[404327938,1770062862338,-10000.01,0.00010585,2]
[404327939,1770062862442,-10000.01,0.00010585,2]
[404327940,1770062862571,-10000.01,0.00010585,2]
[404327941,1770062862704,-10000.01,0.00010585,2]
[404327942,1770062865345,-500.0,0.00010585,2]
[404327943,1770062865391,-9000.01,0.00010585,2]
[404327944,1770062865457,-10000.01,0.00010585,2]
[404327945,1770062878493,200.0,0.00010585,2]
[404327946,1770062886239,500.0,0.00010584,2]
[404327947,1770062886282,500.0,0.00010584,2]
[404327948,1770062886380,592.95940527,0.00010584,2]
[404327949,1770062889501,1150.345313,0.00010532,2]
[404327950,1770062894236,657.77108082,0.00010584,2]
[404327951,1770062894274,657.77108082,0.00010584,2]
[404327952,1770062894325,657.77108082,0.00010584,2]
[404327953,1770062894395,657.77108082,0.00010584,2]
[404327954,1770062894439,657.77108082,0.00010584,2]
[404327955,1770062894492,657.77108082,0.00010584,2]
[404327956,1770062894537,657.77108082,0.00010584,2]
[404327957,1770062894575,657.77108082,0.00010584,2]
[404327958,1770062894664,657.77108082,0.00010584,2]
[404327959,1770062894763,657.77108082,0.00010584,2]
[404327960,1770062894874,478.99447353,0.00010584,2]
[404327961,1770062894901,178.77660729,0.00010584,2]
[404327962,1770062895015,657.77108082,0.00010584,2]
[404327963,1770062895328,657.77108082,0.00010584,2]
[404327964,1770062895414,657.77108082,0.00010584,2]
[404327965,1770062895453,657.77108082,0.00010584,2]
[404327966,1770062895491,657.77108082,0.00010584,2]
[404327967,1770062895528,657.77108082,0.00010584,2]
[404327968,1770062895566,657.77108082,0.00010584,2]
[404327969,1770062895611,657.77108082,0.00010584,2]
[404327970,1770062895648,657.77108082,0.00010584,2]
[404327971,1770062895685,657.77108082,0.00010584,2]